fUSD/lending_fUSD_20250115
["ID","MTS","AMOUNT","RATE_DAILY","PERIOD"]
[349117696,1736977837000,-221.16,0.000332,120]
[349117697,1736977837010,-250.0,0.0003388,2]
[349117698,1736977837019,-750.0,0.00034,120]
[349117699,1736977837029,-150.0,0.00034548,10]
[349117700,1736977837038,-1000.0,0.00034753,2]
[349117701,1736977837049,-160.08812971,0.0003496,2]
[349117702,1736977837058,-5000.0,0.00035,20]
[349117703,1736977837068,-1000.0,0.00035188,2]
[349117704,1736977837077,-541.61,0.00035846,2]
[349117705,1736977837087,-1166.46,0.0003701,120]
[349117706,1736977837097,-711.68623832,0.00037151,7]
[349117707,1736977837107,-203.5,0.00037258,2]
[349117708,1736977837117,-221.16,0.0003735,120]
[349117709,1736977837126,-1712.79,0.00037793,2]
[349117710,1736977837136,-650.0,0.00038,120]
[349117711,1736977837145,-541.61,0.0003811,2]
[349117712,1736977837155,-153.237,0.0003895,120]
[349117713,1736977837165,-1000.0,0.00039098,2]
[349117715,1736977837174,-160.08812971,0.0003918,2]
[349117717,1736977837184,-1262.58681944,0.00039234,31]
[349117719,1736977837193,-216.19138007,0.000399,3]
[349117721,1736977837202,-216.19138003,0.000399,3]
[349117723,1736977837211,-216.19138003,0.000399,3]
[349117725,1736977837221,-541.61,0.00040373,2]
[349117727,1736977837231,-216.19138003,0.000405,3]
[349117729,1736977837240,-1733.902,0.00040696,58]
[349117731,1736977837250,-1166.46,0.00041123,120]
[349117733,1736977837259,-39195.77997907,0.00041301,2]
[349117735,1736977837271,-834.77712809,0.00041301,2]
[349117737,1736977837280,-2244.26314497,0.00041306,30]
[349117740,1736977837291,-623.1,0.00041306,30]
[349117742,1736977837303,-429.87641914,0.00041306,30]
[349117744,1736977837314,-556.26670477,0.00041306,30]
[349117746,1736977837324,-601.12613318,0.00041306,30]
[349117749,1736977837335,-8933.71380024,0.00041306,30]
[349117755,1736977837366,-525.00000005,0.00041306,30]
[349117757,1736977837378,-1017.67226811,0.00041306,30]
[349117759,1736977837392,-810.97479043,0.00041306,30]
[349117835,1736977838010,-150.0,0.000405,3]
[349117837,1736977838020,-200.2350005,0.00041306,30]
[349117839,1736977838031,-15268.34878872,0.00041306,30]
[349117848,1736977838099,-1956.22079084,0.00041306,30]
[349117858,1736977838189,-40259.20215905,0.00041306,30]
[349117860,1736977838198,-157.8074982,0.00041401,2]
[349117862,1736977838208,-157.80749809,0.00041481,2]
[349117864,1736977838217,-221.16,0.000415,120]
[349117866,1736977838226,-157.80749809,0.0004156,2]
[349117868,1736977838235,-157.80749809,0.0004164,2]
[349117870,1736977838245,-157.80749809,0.00041719,2]
[349117872,1736977838254,-157.80749809,0.00041799,2]
[349117874,1736977838263,-157.80749809,0.00041878,2]
[349117876,1736977838272,-7738.44026479,0.000419,15]
[349117878,1736977838282,-4453.5305611,0.0004192,30]
[349117880,1736977838291,-157.80749809,0.00041958,2]
[349117882,1736977838300,-550.0,0.00042,120]
[349117884,1736977838309,-579.0,0.00042,2]
[349117886,1736977838318,-157.80749809,0.00042038,2]
[349117888,1736977838327,-7738.44026478,0.00042067,15]
[349117889,1736977838336,-40030.55710715,0.00042101,2]
[349117891,1736977838346,-157.80749809,0.00042117,2]
[349117894,1736977838357,-201.4832799,0.00042152,4]
[349117896,1736977838366,-157.80749809,0.00042197,2]
[349117897,1736977838375,-7738.44026478,0.00042233,15]
[349117899,1736977838384,-157.80749809,0.00042276,2]
[349117901,1736977838394,-170.56575556,0.00042347,30]
[349117903,1736977838403,-157.80749809,0.00042356,2]
[349117905,1736977838412,-4247.0,0.00042394,117]
[349117908,1736977838421,-7738.44026478,0.000424,15]
[349117909,1736977838431,-157.80749809,0.00042436,2]
[349117911,1736977838440,-157.80749809,0.00042515,2]
[349117913,1736977838450,-7738.44026478,0.00042567,15]
[349117916,1736977838459,-157.80749809,0.00042595,2]
[349117918,1736977838471,-31037.5728,0.000426,2]
[349117920,1736977838481,-541.61,0.00042637,2]
[349117922,1736977838494,-200.0,0.0004267,120]
[349117924,1736977838506,-157.80749809,0.00042674,2]
[349117926,1736977838515,-152.734543,0.00042691,7]
[349117928,1736977838527,-1667.0,0.000427,7]
[349117930,1736977838536,-216.19138003,0.000427,4]
[349117932,1736977838546,-11892.86791244,0.00042703,120]
[349117935,1736977838555,-2878.468222,0.00042722,120]
[349117937,1736977838566,-1382.05286592,0.00042722,120]
[349117939,1736977838576,-11892.86791244,0.00042731,120]
[349117941,1736977838586,-200.0,0.00042734,120]
[349117943,1736977838595,-2878.468222,0.00042735,120]
[349117945,1736977838605,-2878.468222,0.00042738,120]
[349117947,1736977838614,-157.80749809,0.00042754,2]
[349117949,1736977838624,-2878.468222,0.0004276,120]
[349117951,1736977838633,-6752.89393478,0.00042768,120]
[349117953,1736977838643,-11892.86791244,0.00042779,120]
[349117955,1736977838652,-5000.0,0.00042799,2]
[349117957,1736977838663,-1681.91690413,0.000428,120]
[349117959,1736977838675,-6752.89393478,0.00042812,120]
[349117961,1736977838685,-6752.89393478,0.00042814,120]
[349117963,1736977838694,-157.80749809,0.00042833,2]
[349117965,1736977838704,-150.0,0.00042837,2]
[349117967,1736977838713,-150.0,0.00042843,2]
[349117969,1736977838723,-1382.05286592,0.00042846,120]
[349117971,1736977838733,-11421.395198,0.00042855,120]
[349117973,1736977838743,-187.7062275,0.00042857,2]
[349117975,1736977838752,-11892.86791244,0.00042886,120]
[349117977,1736977838763,-6752.89393478,0.00042888,120]
[349117979,1736977838773,-1382.05286592,0.00042891,120]
[349117981,1736977838782,-11421.395198,0.00042896,120]
[349117983,1736977838791,-40030.55710715,0.000429,2]
[349117985,1736977838801,-206.34904149,0.00042903,15]
[349117987,1736977838811,-260.57320789,0.00042913,120]
[349117989,1736977838820,-157.80749809,0.00042913,2]
[349117991,1736977838829,-11421.395198,0.00042922,120]
[349117993,1736977838839,-150.0,0.0004293,2]
[349117995,1736977838849,-300.0,0.00042932,2]
[349117997,1736977838860,-1382.05286592,0.00042949,120]
[349117999,1736977838870,-153.297,0.0004295,120]
[349118001,1736977838880,-11421.395198,0.00042959,120]
[349118003,1736977838889,-11421.395198,0.00042963,120]
[349118005,1736977838898,-260.57320787,0.00042967,120]
[349118007,1736977838908,-2878.468222,0.00042971,120]
[349118009,1736977838918,-357.02742706,0.00042973,10]
[349118011,1736977838927,-11892.86791244,0.0004298,120]
[349118013,1736977838937,-1382.05286592,0.00042987,120]
[349118015,1736977838947,-6752.89393478,0.00042988,120]
[349118017,1736977838956,-2092.0,0.00042989,64]
[349118019,1736977838966,-2160.72012718,0.00042999,120]
[349118021,1736977838975,-86612.88,0.00043,120]
[349118023,1736977838986,-564777.18374423,0.00043,120]
[349118025,1736977838995,-156.38,0.00043003,2]
[349118027,1736977839004,-156.38,0.00043003,2]
[349118029,1736977839013,-4327.9233422,0.00043009,2]
[349118031,1736977839022,-14198.4107228,0.00043009,2]
[349118033,1736977839032,-500.0,0.00043012,7]
[349118035,1736977839042,-503.02478818,0.00043013,4]
[349118037,1736977839051,-505.19728862,0.00043013,4]
[349118039,1736977839061,-315.29799953,0.00043013,4]
[349118041,1736977839070,-501.4012132,0.00043013,4]
[349118043,1736977839079,-511.62455065,0.00043013,4]
[349118045,1736977839089,-543.95096297,0.00043013,4]
[349118047,1736977839098,-500.0,0.00043013,4]
[349118049,1736977839107,-500.0,0.00043013,4]
[349118051,1736977839117,-500.0,0.00043013,4]
[349118053,1736977839126,-254.07545521,0.00043013,4]
[349118055,1736977839136,-500.0,0.00043013,4]
[349118057,1736977839146,-501.03672191,0.00043013,4]
[349118059,1736977839155,-500.0,0.00043013,4]
[349118061,1736977839164,-300.0,0.00043013,4]
[349118063,1736977839174,-500.0,0.00043013,4]
[349118065,1736977839183,-500.0,0.00043013,4]
[349118067,1736977839192,-500.0,0.00043013,4]
[349118069,1736977839202,-500.0,0.00043013,4]
[349118071,1736977839211,-500.0,0.00043013,4]
[349118073,1736977839219,-500.81129647,0.00043013,4]
[349118075,1736977839229,-500.53493488,0.00043013,4]
[349118077,1736977839238,-500.0,0.00043013,4]
[349118079,1736977839248,-500.0,0.00043013,4]
[349118081,1736977839257,-500.70594553,0.00043013,4]
[349118083,1736977839267,-300.0,0.00043013,4]
[349118084,1736977839276,-501.58616187,0.00043013,4]
[349118086,1736977839286,-500.0,0.00043013,4]
[349118088,1736977839296,-500.0,0.00043013,4]
[349118090,1736977839306,-502.04273035,0.00043013,4]
[349118091,1736977839316,-500.0,0.00043013,4]
[349118092,1736977839326,-505.3991901,0.00043013,4]
[349118093,1736977839335,-500.0,0.00043013,4]
[349118094,1736977839345,-500.0,0.00043013,4]
[349118095,1736977839355,-500.0,0.00043013,4]
[349118096,1736977839365,-500.0,0.00043013,4]
[349118097,1736977839376,-500.0,0.00043013,4]
[349118098,1736977839385,-501.71922145,0.00043013,4]
[349118099,1736977839394,-500.0,0.00043013,4]
[349118101,1736977839403,-503.62481773,0.00043013,4]
[349118102,1736977839412,-500.0,0.00043013,4]
[349118104,1736977839421,-500.0,0.00043013,4]
[349118106,1736977839431,-500.39247075,0.00043013,4]
[349118108,1736977839440,-500.0,0.00043013,4]
[349118110,1736977839449,-161.33075921,0.00043013,4]
[349118112,1736977839458,-500.0,0.00043013,4]
[349118114,1736977839468,-500.0,0.00043013,4]
[349118116,1736977839477,-500.0,0.00043013,4]
[349118118,1736977839487,-617.85526286,0.00043013,4]
[349118119,1736977839498,-500.0,0.00043013,4]
[349118122,1736977839507,-500.0,0.00043013,4]
[349118124,1736977839516,-500.0,0.00043013,4]
[349118125,1736977839527,-500.40927436,0.00043013,4]
[349118127,1736977839536,-500.0,0.00043013,4]
[349118130,1736977839546,-500.0,0.00043013,4]
[349118131,1736977839555,-500.34959369,0.00043013,4]
[349118133,1736977839565,-500.0,0.00043013,4]
[349118135,1736977839575,-501.07386579,0.00043013,4]
[349118137,1736977839585,-500.0,0.00043013,4]
[349118139,1736977839593,-500.0,0.00043013,4]
[349118141,1736977839602,-500.0,0.00043013,4]
[349118143,1736977839612,-500.0,0.00043013,4]
[349118145,1736977839621,-500.0,0.00043013,4]
[349118147,1736977839630,-500.0,0.00043013,4]
[349118149,1736977839639,-500.0,0.00043013,4]
[349118151,1736977839648,-500.0,0.00043013,4]
[349118153,1736977839657,-515.93945486,0.00043013,4]
[349118155,1736977839666,-500.0,0.00043013,4]
[349118157,1736977839677,-509.40205177,0.00043013,4]
[349118159,1736977839686,-500.0,0.00043013,4]
[349118161,1736977839695,-500.0,0.00043013,4]
[349118163,1736977839704,-584.46016699,0.00043013,4]
[349118165,1736977839714,-500.0,0.00043013,4]
[349118167,1736977839723,-500.0,0.00043013,4]
[349118169,1736977839732,-500.0,0.00043013,4]
[349118171,1736977839741,-500.0,0.00043013,4]
[349118173,1736977839750,-500.0,0.00043013,4]
[349118175,1736977839761,-500.0,0.00043013,4]
[349118177,1736977839770,-500.0,0.00043013,4]
[349118179,1736977839780,-500.0,0.00043013,4]
[349118181,1736977839789,-500.0,0.00043013,4]
[349118183,1736977839798,-500.0,0.00043013,4]
[349118185,1736977839808,-500.0,0.00043013,4]
[349118187,1736977839817,-500.0,0.00043013,4]
[349118189,1736977839827,-500.0,0.00043013,4]
[349118191,1736977839836,-500.0,0.00043013,4]
[349118193,1736977839846,-500.0,0.00043013,4]
[349118195,1736977839855,-500.0,0.00043013,4]
[349118197,1736977839865,-500.0,0.00043013,4]
[349118199,1736977839873,-500.0,0.00043013,4]
[349118201,1736977839883,-500.0,0.00043013,4]
[349118203,1736977839892,-500.0,0.00043013,4]
[349118205,1736977839901,-500.0,0.00043013,4]
[349118207,1736977839911,-500.0,0.00043013,4]
[349118210,1736977839921,-500.0,0.00043013,4]
[349118212,1736977839930,-505.44381066,0.00043013,4]
[349118214,1736977839939,-500.0,0.00043013,4]
[349118216,1736977839948,-500.0,0.00043013,4]
[349118218,1736977839956,-500.0,0.00043013,4]
[349118220,1736977839965,-500.0,0.00043013,4]
[349118222,1736977839974,-500.0,0.00043013,4]
[349118223,1736977839983,-500.0,0.00043013,4]
[349118225,1736977839992,-500.0,0.00043013,4]
[349118227,1736977840001,-500.0,0.00043013,4]
[349118230,1736977840012,-500.0,0.00043013,4]
[349118231,1736977840021,-500.0,0.00043013,4]
[349118234,1736977840030,-500.0,0.00043013,4]
[349118236,1736977840040,-500.0,0.00043013,4]
[349118237,1736977840049,-500.0,0.00043013,4]
[349118239,1736977840059,-500.0,0.00043013,4]
[349118241,1736977840069,-517.02306256,0.00043013,4]
[349118244,1736977840079,-500.0,0.00043013,4]
[349118245,1736977840087,-500.0,0.00043013,4]
[349118247,1736977840097,-461.53225744,0.00043013,4]
[349118250,1736977840108,-500.0,0.00043013,4]
[349118252,1736977840117,-504.83953016,0.00043013,4]
[349118254,1736977840126,-1062.55,0.00043013,2]
[349118256,1736977840135,-511.50614198,0.00043013,4]
[349118257,1736977840145,-500.0,0.00043013,4]
[349118259,1736977840154,-500.0,0.00043013,4]
[349118261,1736977840163,-500.0,0.00043013,4]
[349118263,1736977840173,-177.54801677,0.00043013,4]
[349118265,1736977840183,-500.0,0.00043013,4]
[349118267,1736977840192,-500.0,0.00043013,4]
[349118269,1736977840202,-500.0,0.00043013,4]
[349118271,1736977840211,-500.0,0.00043013,4]
[349118273,1736977840220,-500.0,0.00043013,4]
[349118276,1736977840231,-445.22995733,0.00043013,4]
[349118278,1736977840240,-500.0,0.00043013,4]
[349118280,1736977840249,-500.0,0.00043013,4]
[349118282,1736977840258,-500.0,0.00043013,4]
[349118283,1736977840267,-500.90899813,0.00043013,4]
[349118285,1736977840276,-500.0,0.00043013,4]
[349118287,1736977840286,-496.45253349,0.00043013,4]
[349118289,1736977840295,-500.0,0.00043013,4]
[349118291,1736977840304,-500.0,0.00043013,4]
[349118294,1736977840314,-500.0,0.00043013,4]
[349118295,1736977840323,-501.28449635,0.00043013,4]
[349118298,1736977840333,-500.0,0.00043013,4]
[349118300,1736977840341,-273.88744656,0.00043013,4]
[349118302,1736977840351,-500.0,0.00043013,4]
[349118304,1736977840363,-500.0,0.00043013,4]
[349118306,1736977840373,-508.71621178,0.00043013,4]
[349118308,1736977840382,-500.0,0.00043013,4]
[349118310,1736977840392,-500.0,0.00043013,4]
[349118311,1736977840402,-421.96147612,0.00043013,4]
[349118313,1736977840411,-500.81745505,0.00043013,4]
[349118315,1736977840420,-500.0,0.00043013,4]
[349118317,1736977840428,-500.0,0.00043013,4]
[349118319,1736977840438,-550.68,0.00043013,4]
[349118321,1736977840447,-500.0,0.00043013,4]
[349118323,1736977840457,-521.38766952,0.00043013,4]
[349118325,1736977840466,-500.0,0.00043013,4]
[349118327,1736977840475,-584.36771757,0.00043013,4]
[349118329,1736977840484,-500.0,0.00043013,4]
[349118331,1736977840497,-500.0,0.00043013,4]
[349118333,1736977840507,-391.73753551,0.00043013,4]
[349118335,1736977840516,-500.0,0.00043013,4]
[349118337,1736977840525,-500.0,0.00043013,4]
[349118339,1736977840535,-500.0,0.00043013,4]
[349118341,1736977840544,-500.0,0.00043013,4]
[349118343,1736977840553,-500.0,0.00043013,4]
[349118345,1736977840562,-500.0,0.00043013,4]
[349118347,1736977840573,-500.90889503,0.00043013,4]
[349118349,1736977840582,-500.0,0.00043013,4]
[349118351,1736977840592,-500.0,0.00043013,4]
[349118353,1736977840602,-500.0,0.00043013,4]
[349118355,1736977840612,-500.0,0.00043013,4]
[349118357,1736977840622,-500.0,0.00043013,4]
[349118359,1736977840631,-500.0,0.00043013,4]
[349118361,1736977840640,-500.0,0.00043013,4]
[349118363,1736977840650,-500.0,0.00043013,4]
[349118365,1736977840659,-500.0,0.00043013,4]
[349118367,1736977840669,-500.0,0.00043013,4]
[349118369,1736977840679,-500.0,0.00043013,4]
[349118371,1736977840689,-500.0,0.00043013,4]
[349118373,1736977840698,-500.0,0.00043013,4]
[349118375,1736977840707,-500.0,0.00043013,4]
[349118377,1736977840716,-500.0,0.00043013,4]
[349118379,1736977840725,-593.0261368,0.00043013,4]
[349118381,1736977840735,-500.0,0.00043013,4]
[349118383,1736977840744,-500.0,0.00043013,4]
[349118385,1736977840753,-500.0,0.00043013,4]
[349118387,1736977840763,-500.0,0.00043013,4]
[349118389,1736977840773,-500.0,0.00043013,4]
[349118391,1736977840782,-152.14770722,0.00043013,4]
[349118393,1736977840792,-500.0,0.00043013,4]
[349118395,1736977840801,-500.0,0.00043013,4]
[349118397,1736977840811,-500.0,0.00043013,4]
[349118399,1736977840820,-500.0,0.00043013,4]
[349118401,1736977840829,-500.0,0.00043013,4]
[349118403,1736977840839,-518.54632479,0.00043013,4]
[349118405,1736977840848,-177.54199914,0.00043013,4]
[349118407,1736977840859,-336.74250086,0.00043013,4]
[349118409,1736977840868,-500.0,0.00043013,4]
[349118411,1736977840878,-500.0,0.00043013,4]
[349118413,1736977840888,-500.0,0.00043013,4]
[349118415,1736977840897,-500.0,0.00043013,4]
[349118417,1736977840906,-500.0,0.00043013,4]
[349118419,1736977840915,-500.0,0.00043013,4]
[349118421,1736977840925,-500.0,0.00043013,4]
[349118422,1736977840934,-500.0,0.00043013,4]
[349118424,1736977840943,-500.0,0.00043013,4]
[349118426,1736977840952,-500.0,0.00043013,4]
[349118429,1736977840961,-503.18069791,0.00043013,4]
[349118430,1736977840971,-500.0,0.00043013,4]
[349118433,1736977840980,-500.0,0.00043013,4]
[349118434,1736977840989,-500.0,0.00043013,4]
[349118436,1736977840999,-503.15772512,0.00043013,4]
[349118438,1736977841008,-500.0,0.00043013,4]
[349118440,1736977841017,-500.0,0.00043013,4]
[349118442,1736977841026,-500.0,0.00043013,4]
[349118444,1736977841036,-502.75001746,0.00043013,4]
[349118446,1736977841045,-500.0,0.00043013,4]
[349118449,1736977841055,-500.0,0.00043013,4]
[349118451,1736977841065,-151.0,0.00043013,14]
[349118453,1736977841074,-500.0,0.00043013,4]
[349118454,1736977841084,-399.70569718,0.00043013,4]
[349118457,1736977841095,-500.0,0.00043013,4]
[349118459,1736977841104,-500.0,0.00043013,4]
[349118461,1736977841113,-500.0,0.00043013,4]
[349118462,1736977841123,-500.0,0.00043013,4]
[349118464,1736977841132,-500.0,0.00043013,4]
[349118467,1736977841141,-500.0,0.00043013,4]
[349118468,1736977841151,-187.185289,0.00043013,14]
[349118470,1736977841160,-500.0,0.00043013,4]
[349118472,1736977841169,-187.185289,0.00043013,14]
[349118474,1736977841178,-500.0,0.00043013,4]
[349118476,1736977841187,-500.0,0.00043013,4]
[349118478,1736977841197,-500.0,0.00043013,4]
[349118480,1736977841206,-187.185289,0.00043013,14]
[349118482,1736977841216,-187.185289,0.00043013,14]
[349118484,1736977841225,-500.0,0.00043013,4]
[349118486,1736977841234,-500.0,0.00043013,4]
[349118488,1736977841243,-500.0,0.00043013,4]
[349118490,1736977841252,-500.0,0.00043013,4]
[349118492,1736977841261,-500.0,0.00043013,4]
[349118494,1736977841271,-500.0,0.00043013,4]
[349118496,1736977841280,-501.55543434,0.00043013,4]
[349118498,1736977841289,-501.75530091,0.00043013,4]
[349118500,1736977841298,-500.0,0.00043013,4]
[349118502,1736977841307,-506.99323013,0.00043013,4]
[349118504,1736977841317,-500.0,0.00043013,4]
[349118506,1736977841327,-500.0,0.00043013,4]
[349118508,1736977841336,-500.0,0.00043013,4]
[349118510,1736977841345,-500.0,0.00043013,4]
[349118512,1736977841356,-500.0,0.00043013,4]
[349118525,1736977841366,-500.0,0.00043013,4]
[349118526,1736977841522,-500.0,0.00043013,4]
[349118527,1736977841533,-500.0,0.00043013,4]
[349118528,1736977841542,-500.0,0.00043013,4]
[349118529,1736977841551,-500.0,0.00043013,4]
[349118530,1736977841560,-500.0,0.00043013,4]
[349118532,1736977841573,-500.0,0.00043013,4]
[349118534,1736977841583,-500.0,0.00043013,4]
[349118536,1736977841592,-500.0,0.00043013,4]
[349118538,1736977841602,-500.0,0.00043013,4]
[349118540,1736977841614,-500.0,0.00043013,4]
[349118542,1736977841623,-500.0,0.00043013,4]
[349118544,1736977841631,-500.0,0.00043013,4]
[349118546,1736977841640,-500.0,0.00043013,4]
[349118547,1736977841650,-500.0,0.00043013,4]
[349118550,1736977841659,-151.0,0.00043013,14]
[349118551,1736977841669,-500.0,0.00043013,4]
[349118554,1736977841681,-151.0,0.00043013,14]
[349118555,1736977841690,-151.0,0.00043013,14]
[349118557,1736977841700,-151.0,0.00043013,14]
[349118560,1736977841710,-500.0,0.00043013,4]
[349118562,1736977841720,-500.0,0.00043013,4]
[349118564,1736977841730,-500.0,0.00043013,4]
[349118565,1736977841740,-151.0,0.00043013,14]
[349118568,1736977841749,-151.0,0.00043013,14]
[349118570,1736977841759,-151.0,0.00043013,14]
[349118571,1736977841768,-151.0,0.00043013,14]
[349118573,1736977841778,-500.0,0.00043013,4]
[349118575,1736977841788,-500.0,0.00043013,4]
[349118577,1736977841797,-500.0,0.00043013,4]
[349118579,1736977841807,-377.50794736,0.00043013,4]
[349118582,1736977841816,-500.0,0.00043013,4]
[349118583,1736977841826,-500.0,0.00043013,4]
[349118585,1736977841835,-151.073516,0.00043013,14]
[349118587,1736977841844,-151.0,0.00043013,14]
[349118589,1736977841853,-151.0,0.00043013,14]
[349118591,1736977841865,-500.0,0.00043013,4]
[349118593,1736977841874,-500.0,0.00043013,4]
[349118595,1736977841883,-500.0,0.00043013,4]
[349118597,1736977841892,-500.0,0.00043013,4]
[349118599,1736977841902,-500.0,0.00043013,4]
[349118601,1736977841911,-500.0,0.00043013,4]
[349118603,1736977841921,-500.0,0.00043013,4]
[349118605,1736977841930,-500.0,0.00043013,4]
[349118607,1736977841939,-370.33461963,0.00043013,4]
[349118609,1736977841948,-500.0,0.00043013,4]
[349118611,1736977841957,-232.088016,0.00043013,14]
[349118613,1736977841967,-500.0,0.00043013,4]
[349118615,1736977841975,-500.0,0.00043013,4]
[349118617,1736977841984,-500.0,0.00043013,4]
[349118619,1736977841994,-500.0,0.00043013,4]
[349118621,1736977842003,-509.32838305,0.00043013,4]
[349118623,1736977842012,-500.0,0.00043013,4]
[349118625,1736977842022,-504.93761283,0.00043013,4]
[349118627,1736977842031,-500.0,0.00043013,4]
[349118629,1736977842040,-500.0,0.00043013,4]
[349118631,1736977842050,-495.60935635,0.00043013,4]
[349118633,1736977842059,-500.0,0.00043013,4]
[349118635,1736977842067,-500.0,0.00043013,4]
[349118637,1736977842076,-500.0,0.00043013,4]
[349118639,1736977842085,-500.0,0.00043013,4]
[349118641,1736977842094,-500.0,0.00043013,4]
[349118643,1736977842103,-507.66012317,0.00043013,4]
[349118645,1736977842113,-500.0,0.00043013,4]
[349118647,1736977842122,-500.0,0.00043013,4]
[349118649,1736977842131,-500.0,0.00043013,4]
[349118651,1736977842140,-500.0,0.00043013,4]
[349118653,1736977842149,-500.0,0.00043013,4]
[349118655,1736977842158,-500.0,0.00043013,4]
[349118657,1736977842168,-500.0,0.00043013,4]
[349118659,1736977842177,-500.0,0.00043013,4]
[349118661,1736977842186,-500.0,0.00043013,4]
[349118663,1736977842196,-503.18351931,0.00043013,4]
[349118665,1736977842204,-500.0,0.00043013,4]
[349118667,1736977842214,-500.0,0.00043013,4]
[349118669,1736977842223,-500.0,0.00043013,4]
[349118671,1736977842232,-500.0,0.00043013,4]
[349118673,1736977842241,-500.0,0.00043013,4]
[349118675,1736977842251,-500.0,0.00043013,4]
[349118677,1736977842260,-500.0,0.00043013,4]
[349118679,1736977842269,-151.0,0.00043013,14]
[349118681,1736977842278,-500.0,0.00043013,4]
[349118683,1736977842288,-151.0,0.00043013,14]
[349118685,1736977842297,-500.0,0.00043013,4]
[349118687,1736977842306,-500.0,0.00043013,4]
[349118689,1736977842315,-500.0,0.00043013,4]
[349118691,1736977842325,-500.0,0.00043013,4]
[349118693,1736977842334,-500.0,0.00043013,4]
[349118695,1736977842343,-500.0,0.00043013,4]
[349118697,1736977842352,-500.0,0.00043013,4]
[349118699,1736977842362,-500.0,0.00043013,4]
[349118701,1736977842371,-503.92099416,0.00043013,4]
[349118703,1736977842381,-500.65582132,0.00043013,4]
[349118705,1736977842390,-500.0,0.00043013,4]
[349118707,1736977842399,-202.05115328,0.00043013,4]
[349118709,1736977842408,-223.6156992,0.00043013,4]
[349118711,1736977842418,-247.54028467,0.00043013,4]
[349118713,1736977842427,-500.0,0.00043013,4]
[349118715,1736977842436,-500.0,0.00043013,4]
[349118717,1736977842446,-500.0,0.00043013,4]
[349118719,1736977842455,-500.0,0.00043013,4]
[349118721,1736977842465,-500.0,0.00043013,4]
[349118723,1736977842474,-500.0,0.00043013,4]
[349118725,1736977842484,-500.0,0.00043013,4]
[349118727,1736977842497,-500.0,0.00043013,4]
[349118729,1736977842507,-151.0,0.00043013,14]
[349118731,1736977842516,-500.0,0.00043013,4]
[349118733,1736977842527,-500.0,0.00043013,4]
[349118735,1736977842536,-500.0,0.00043013,4]
[349118737,1736977842545,-500.0,0.00043013,4]
[349118740,1736977842555,-500.0,0.00043013,4]
[349118742,1736977842565,-500.0,0.00043013,4]
[349118743,1736977842575,-502.19923924,0.00043013,4]
[349118746,1736977842585,-500.0,0.00043013,4]
[349118747,1736977842594,-500.0,0.00043013,4]
[349118750,1736977842604,-500.0,0.00043013,4]
[349118752,1736977842614,-500.0,0.00043013,4]
[349118754,1736977842624,-500.0,0.00043013,4]
[349118756,1736977842633,-500.0,0.00043013,4]
[349118758,1736977842643,-500.0,0.00043013,4]
[349118760,1736977842652,-500.0,0.00043013,4]
[349118762,1736977842662,-500.0,0.00043013,4]
[349118764,1736977842671,-500.0,0.00043013,4]
[349118766,1736977842681,-645.04851655,0.00043013,4]